fUST/lending_fUST_20250425
["ID","MTS","AMOUNT","RATE_DAILY","PERIOD"]
[358911727,1745544787088,-1488.65,0.0004555,120]
[358911728,1745544787114,-1581.06614695,0.0004555,120]
[358911729,1745544787138,-58978.76192864,0.000456,120]
[358911730,1745544787164,-1488.65,0.0004565,120]
[358911731,1745544787190,-338371.18002108,0.00045684,120]
[358911732,1745544787216,-236.94256,0.000457,120]
[358911733,1745544787243,-294.51661,0.000457,120]
[358911734,1745544787270,-1488.65,0.0004575,120]
[358911735,1745544787296,-719.31,0.00045753,36]
[358911736,1745544787323,-205.04,0.0004578,120]
[358911737,1745544787350,-1488.65,0.0004585,120]
[358911738,1745544787376,-248.58260695,0.000459,120]
[358911739,1745544787402,-47713.94,0.000459,120]
[358911740,1745544787428,-1488.65,0.0004595,120]
[358911741,1745544787453,-1653.35780516,0.00046,120]
[358911742,1745544787478,-818.64768252,0.00046,120]
[358911743,1745544787504,-300.0,0.00046,120]
[358911744,1745544787531,-2115.0,0.00046,120]
[358911745,1745544787557,-2115.0,0.00046,120]
[358911746,1745544787583,-2115.0,0.00046,120]
[358911747,1745544787608,-2115.0,0.00046,120]
[358911748,1745544787633,-2115.0,0.00046,120]
[358911749,1745544787657,-2115.0,0.00046,120]
[358911750,1745544787682,-2115.0,0.00046,120]
[358911751,1745544787707,-2115.0,0.00046,120]
[358911752,1745544787732,-2115.0,0.00046,120]
[358911753,1745544787760,-2115.0,0.00046,120]
[358911754,1745544787786,-3647.0,0.00046,120]
[358911755,1745544787811,-3647.0,0.00046,120]
[358911756,1745544787836,-3647.0,0.00046,120]
[358911757,1745544787860,-3647.0,0.00046,120]
[358911758,1745544787884,-96199.58572339,0.00046,120]
[358911759,1745544787910,-719.31,0.00046027,37]
[358911760,1745544787936,-1488.65,0.0004605,120]
[358911761,1745544787960,-1488.65,0.0004615,120]
[358911762,1745544787988,-1488.65,0.0004625,120]
[358911763,1745544788014,-719.31,0.00046301,38]
[358911764,1745544788038,-1489.34622719,0.0004635,120]
[358911765,1745544788065,-153.0,0.00046355,30]
[358911766,1745544788089,-153.0,0.00046355,30]
[358911767,1745544788115,-153.0,0.00046355,30]
[358911768,1745544788140,-153.0,0.00046355,30]
[358911769,1745544788166,-153.0,0.00046355,30]
[358911770,1745544788191,-153.0,0.00046355,30]
[358911771,1745544788217,-153.0,0.00046355,30]
[358911772,1745544788242,-153.0,0.00046355,30]
[358911773,1745544788267,-153.0,0.00046355,30]
[358911774,1745544788293,-153.0,0.00046355,30]
[358911775,1745544788321,-153.0,0.00046355,30]
[358911776,1745544788347,-153.0,0.00046355,30]
[358911777,1745544788371,-153.0,0.00046355,30]
[358911778,1745544788395,-1399.0,0.00046434,42]
[358911779,1745544788422,-345.64752,0.000465,120]
[358911780,1745544788446,-719.31,0.00046575,39]
[358911781,1745544788489,527.29404853,0.0003987,30]
[358911782,1745544794255,500.00000001,0.00041096,31]
[358911783,1745544795992,-2000.0,0.00040409,30]
[358911784,1745544796020,-2000.0,0.00040409,30]
[358911785,1745544796047,-2000.0,0.00040409,120]
[358911786,1745544796075,-500.0,0.00040409,60]
[358911787,1745544796104,-500.0,0.00040409,60]
[358911788,1745544796140,-500.0,0.00040409,60]
[358911789,1745544796168,-500.0,0.00040409,60]
[358911790,1745544796197,-152.01212831,0.00040409,60]
[358911791,1745544796224,-2000.0,0.00040409,30]
[358911792,1745544796254,-2000.0,0.00040409,30]
[358911793,1745544796279,-2000.0,0.00040409,30]
[358911794,1745544796306,-2000.0,0.00040409,30]
[358911795,1745544796332,-1427.17891804,0.00040409,80]
[358911796,1745544796361,-153.0,0.00040409,31]
[358911797,1745544796390,-276.0,0.00040409,31]
[358911798,1745544796419,-425.0,0.00040409,31]
[358911799,1745544796446,-174.0,0.00040409,31]
[358911800,1745544796474,-268.0,0.00040409,31]
[358911801,1745544796504,-1398.0,0.00040409,38]
[358911802,1745544796532,-2009.0,0.00040409,120]
[358911803,1745544796559,-499.999998,0.00040409,120]
[358911804,1745544796586,-612.0902998,0.00040409,30]
[358911805,1745544796614,-847.33977811,0.00040409,120]
[358911806,1745544796640,-226.35430175,0.00040409,60]
[358911807,1745544796668,-1175.19941328,0.00040409,30]
[358911808,1745544796697,-1405.37068589,0.00040409,32]
[358911809,1745544796724,-260.65456478,0.00040409,120]
[358911810,1745544796752,-258.60221328,0.00040409,120]
[358911811,1745544796779,-498.999985,0.00040409,120]
[358911812,1745544796807,-319.90509585,0.00040409,60]
[358911813,1745544796835,-909.74723984,0.00040409,120]
[358911814,1745544796863,-1030.24913317,0.00040409,120]
[358911815,1745544796891,-1168.68709394,0.00040409,30]
[358911816,1745544796917,-577.11253089,0.00040409,120]
[358911817,1745544796949,-683.69616924,0.00040409,120]
[358911818,1745544796975,-663.50715208,0.00040409,31]
[358911819,1745544797002,-240.82074905,0.00040409,120]
[358911820,1745544797042,-1654.19542785,0.00040409,60]
[358911821,1745544797074,-936.0968377,0.00040409,120]
[358911822,1745544797100,-2000.0,0.00040409,120]
[358911823,1745544797127,-242.34502875,0.00040409,30]
[358911824,1745544797155,-1093.23726805,0.00040409,120]
[358911825,1745544797184,-991.43369725,0.00040409,30]
[358911826,1745544797212,-155.96951375,0.00040409,30]
[358911827,1745544797240,-1279.37781362,0.00040409,60]
[358911828,1745544797268,-473.63216909,0.00040409,120]
[358911829,1745544797293,-1000.75188057,0.00040409,120]
[358911830,1745544797319,-151.36841945,0.00040409,30]
[358911831,1745544797346,-443.26149972,0.00040409,120]
[358911832,1745544797374,-1004.9471765,0.00040409,120]
[358911833,1745544797401,-170.6303678,0.00040409,120]
[358911834,1745544797428,-423.70182438,0.00040409,120]
[358911835,1745544797457,-214.46151376,0.00040409,120]
[358911836,1745544797485,-1959.58604649,0.00040409,120]
[358911837,1745544797513,-314.84781126,0.00040409,120]
[358911838,1745544797540,-202.39024237,0.00040409,120]
[358911839,1745544797565,-504.5919149,0.00040409,30]
[358911840,1745544797592,-1083.52887004,0.00040409,120]
[358911841,1745544797620,-2202.97430908,0.00040409,120]
[358911842,1745544797646,-1315.896529,0.00040409,60]
[358911843,1745544797673,-584.46,0.00040409,30]
[358911844,1745544797701,-584.46,0.00040409,30]
[358911845,1745544797728,-584.46,0.00040409,30]
[358911846,1745544797757,-584.46,0.00040409,30]
[358911847,1745544797786,-584.46,0.00040409,30]
[358911848,1745544797815,-584.46,0.00040409,30]
[358911849,1745544797844,-584.46,0.00040409,30]
[358911850,1745544797871,-584.46,0.00040409,30]
[358911851,1745544797899,-584.46,0.00040409,30]
[358911852,1745544798116,-584.46,0.00040409,30]
[358911853,1745544798145,-584.46,0.00040409,30]
[358911854,1745544798174,-584.46,0.00040409,30]
[358911855,1745544798201,-584.46,0.00040409,30]
[358911856,1745544798228,-584.46,0.00040409,30]
[358911857,1745544798256,-584.46,0.00040409,30]
[358911858,1745544798285,-584.46,0.00040409,30]
[358911859,1745544798313,-584.46,0.00040409,30]
[358911860,1745544798342,-584.46,0.00040409,30]
[358911861,1745544798372,-584.46,0.00040409,30]
[358911862,1745544798401,-584.46,0.00040409,30]
[358911863,1745544798429,-584.46,0.00040409,120]
[358911864,1745544798457,-584.46,0.00040409,120]
[358911865,1745544798485,-584.46,0.00040409,120]
[358911866,1745544798512,-584.6567629,0.00040409,120]
[358911867,1745544798541,-1842.0,0.00040409,120]
[358911868,1745544798570,-9866.69264895,0.00040409,120]
[358911869,1745544798599,-2420.87479249,0.00040409,120]
[358911870,1745544798629,-15000.0,0.00040409,120]
[358911871,1745544798656,-809.20283022,0.00040409,30]
[358911872,1745544798685,-611.88569211,0.00040409,120]
[358911873,1745544798715,-995.8194221,0.00040409,120]
[358911874,1745544798747,-500.0,0.00040409,60]
[358911875,1745544798777,-500.0,0.00040409,60]
[358911876,1745544798809,-245.55860158,0.00040409,60]
[358911877,1745544798839,-150.0,0.00040409,30]
[358911878,1745544798867,-150.0,0.00040409,60]
[358911879,1745544798895,-150.0,0.00040409,90]
[358911880,1745544798923,-150.0,0.00040409,31]
[358911881,1745544798949,-150.0,0.00040409,31]
[358911882,1745544798977,-1179.0,0.00040409,31]
[358911883,1745544799004,-1821.0,0.00040409,31]
[358911884,1745544799030,-745.0,0.00040409,31]
[358911885,1745544799058,-1148.0,0.00040409,31]
[358911886,1745544799087,-295.0,0.00040409,31]
[358911887,1745544799115,-590.0,0.00040409,31]
[358911888,1745544799143,-150.0,0.00040409,31]
[358911889,1745544799172,-917.0,0.00040409,31]
[358911890,1745544799202,-1416.0,0.00040409,31]
[358911891,1745544799231,-579.0,0.00040409,31]
[358911892,1745544799256,-892.0,0.00040409,31]
[358911893,1745544799282,-229.0,0.00040409,31]
[358911894,1745544799307,-459.0,0.00040409,31]
[358911895,1745544799336,-150.0,0.00040409,31]
[358911896,1745544799362,-5500.0,0.00040409,30]
[358911897,1745544799388,-1088.7825398,0.00040409,35]
[358911898,1745544799416,-4710.0,0.00040409,30]
[358911899,1745544799444,-245.0,0.00040409,31]
[358911900,1745544799472,-239.0,0.00040409,31]
[358911901,1745544799500,-233.0,0.00040409,31]
[358911902,1745544799530,-4580.17769559,0.00040409,30]
[358911903,1745544799558,-227.0,0.00040409,31]
[358911904,1745544799584,-222.0,0.00040409,31]
[358911905,1745544799612,-216.0,0.00040409,31]
[358911906,1745544799637,-211.0,0.00040409,31]
[358911907,1745544799664,-206.0,0.00040409,31]
[358911908,1745544799691,-201.0,0.00040409,31]
[358911909,1745544799718,-150.0,0.00040409,31]
[358911910,1745544799746,-804.0,0.00040409,31]
[358911911,1745544799772,-402.0,0.00040409,31]
[358911912,1745544799797,-1564.0,0.00040409,31]
[358911913,1745544799823,-1015.0,0.00040409,31]
[358911914,1745544799849,-2482.0,0.00040409,31]
[358911915,1745544799878,-1607.0,0.00040409,31]
[358911916,1745544799906,-4253.33031571,0.00040409,120]
[358911917,1745544799934,-2485.30056898,0.00040409,120]
[358911918,1745544799961,-3230.07743143,0.00040409,30]
[358911919,1745544799988,-2814.23048552,0.00040409,30]
[358911920,1745544800013,-3303.29181865,0.00040409,120]
[358911921,1745544800039,-2318.30643152,0.00040409,120]
[358911922,1745544800066,-3362.42980462,0.00040409,30]
[358911923,1745544800093,-150.0,0.00040409,31]
[358911924,1745544800121,-150.0,0.00040409,31]
[358911925,1745544800149,-150.0,0.00040409,31]
[358911926,1745544800175,-202.0,0.00040409,31]
[358911927,1745544800204,-1000.01500044,0.00040409,120]
[358911928,1745544800230,-2981.0,0.00040409,120]
[358911929,1745544800256,-500.0,0.00040409,30]
[358911930,1745544800282,-5000.0,0.00040409,120]
[358911931,1745544800309,-5000.0,0.00040409,120]
[358911932,1745544800336,-5000.0,0.00040409,120]
[358911933,1745544800367,-5000.0,0.00040409,120]
[358911934,1745544800394,-5000.0,0.00040409,120]
[358911935,1745544800422,-5000.0,0.00040409,120]
[358911936,1745544800450,-5000.0,0.00040409,120]
[358911937,1745544800477,-5000.0,0.00040409,120]
[358911938,1745544800507,-5000.0,0.00040409,120]
[358911939,1745544800534,-5000.0,0.00040409,120]
[358911940,1745544800560,-5000.0,0.00040409,120]
[358911941,1745544800587,-5000.0,0.00040409,120]
[358911942,1745544800613,-5000.0,0.00040409,120]
[358911943,1745544800639,-5000.0,0.00040409,120]
[358911944,1745544800664,-1210.55707798,0.00040409,120]
[358911945,1745544800836,-5000.0,0.00040409,120]
[358911946,1745544800864,-5000.0,0.00040409,120]
[358911947,1745544800891,-5000.0,0.00040409,120]
[358911948,1745544800918,-5000.0,0.00040409,120]
[358911949,1745544800945,-20000.0,0.00040409,30]
[358911950,1745544800971,-200.0,0.00040409,30]
[358911951,1745544800999,-200.0,0.00040409,30]
[358911952,1745544801026,-200.0,0.00040409,30]
[358911953,1745544801052,-200.0,0.00040409,30]
[358911954,1745544801079,-200.0,0.00040409,30]
[358911955,1745544801107,-251.3,0.00040409,30]
[358911956,1745544801132,-271.6,0.00040409,120]
[358911957,1745544801159,-2280.88430387,0.00040409,120]
[358911958,1745544801185,-8000.0,0.00040409,30]
[358911959,1745544801213,-1503.24752876,0.00040409,120]
[358911960,1745544801240,-271.6,0.00040409,120]
[358911961,1745544801265,-639.43167064,0.00040409,120]
[358911962,1745544801292,-39367.70607463,0.00040409,120]
[358911963,1745544801318,-2000.0,0.00040409,30]
[358911964,1745544801343,-2000.0,0.00040409,30]
[358911965,1745544801370,-1450.0,0.00040409,120]
[358911966,1745544801396,-500.0,0.00040409,30]
[358911967,1745544801423,-500.0,0.00040409,30]
[358911968,1745544801449,-129224.62230384,0.00040409,120]
[358911969,1745544801479,-6014.91098971,0.00040409,30]
[358911970,1745544801508,-938.199999,0.00040409,30]
[358911971,1745544801536,-150.0,0.00040409,31]
[358911972,1745544802228,200.0,0.00032,37]
[358911973,1745544802677,200.0,0.00033,40]
[358911974,1745544803047,200.0,0.00034,43]
[358911975,1745544803429,251.6,0.00035,46]
[358911976,1745544812287,261.16,0.0004199,120]
[358917077,1745545113363,5001.9,0.00025,30]
[358917105,1745545154550,151.0,0.00024658,30]
[358917106,1745545154729,151.0,0.00024713,30]
[358917107,1745545154908,151.0,0.00024768,30]
[358917108,1745545155100,284.08454672,0.00024822,30]
[358923392,1745545832229,-236.351023,0.00015081,2]
[358923394,1745545832238,-4902.4741583,0.00015102,2]
[358923395,1745545832248,-169.9664573,0.00015299,2]
[358923396,1745545832259,-361.63746445,0.00016064,2]
[358923397,1745545832268,-438.69591241,0.00016079,2]
[358923399,1745545832278,-300.0,0.0001608,2]
[358923400,1745545832288,-1200.0,0.0001608,2]
[358923401,1745545832298,-4267.32955036,0.00016081,2]
[358923514,1745545837941,-500.0,0.00015101,2]
[358923516,1745545837951,-500.0,0.00015101,2]
[358923517,1745545837961,-500.0,0.00015101,2]
[358923518,1745545837970,-500.0,0.00015101,2]
[358923519,1745545837979,-500.0,0.00015101,2]
[358923520,1745545837989,-500.0,0.00015101,2]
[358923522,1745545837999,-500.0,0.00015101,2]
[358923523,1745545838008,-500.0,0.00015101,2]
[358923524,1745545838018,-500.0,0.00015101,2]
[358923525,1745545838027,-500.0,0.00015101,2]
[358923526,1745545838037,-500.0,0.00015101,2]
[358923528,1745545838047,-500.0,0.00015101,2]
[358923529,1745545838061,-500.0,0.00015101,2]
[358923530,1745545838070,-221.43893187,0.00015101,2]
[358923531,1745545838083,-278.56106813,0.00015101,2]
[358923532,1745545838092,-500.0,0.00015101,2]
[358923534,1745545838103,-500.0,0.00015101,2]
[358923535,1745545838113,-500.0,0.00015101,2]
[358923536,1745545838122,-479.4330879,0.00015101,2]
[358923537,1745545838133,-500.0,0.00015101,2]
[358923538,1745545838143,-1503.67759953,0.00016081,2]
[358923540,1745545838156,-792.2,0.00016081,2]
[358923541,1745545838167,-571.84555664,0.00016081,2]
[358923542,1745545838178,-21090.99712771,0.00016081,2]
[358923543,1745545838190,-1020.0,0.00016081,2]
[358923545,1745545838201,-10002.94662893,0.00016081,2]
[358923589,1745545840389,-3502.36741196,0.00016081,2]
[358923590,1745545840399,-393.25876189,0.00016164,2]
[358923592,1745545840410,-171.40744714,0.00016184,2]
[358923593,1745545840420,-5000.0,0.000163,2]
[358923594,1745545840430,-207.75509865,0.00016338,2]
[358923595,1745545840440,-500.16504348,0.00016438,2]
[358923596,1745545840450,-500.0,0.00016438,2]
[358923597,1745545840459,-500.0,0.00016438,2]
[358923599,1745545840468,-500.0,0.00016438,2]
[358923600,1745545840479,-500.0,0.00016438,2]
[358923601,1745545840489,-501.73538004,0.00016438,2]
[358923602,1745545840498,-500.0,0.00016438,2]
[358923603,1745545840508,-528.69,0.00016438,2]
[358923604,1745545840518,-500.0,0.00016438,2]
[358923606,1745545840528,-500.0,0.00016438,2]
[358923607,1745545840537,-500.0,0.00016438,2]
[358923608,1745545840547,-826.89,0.00016438,2]
[358923609,1745545840557,-500.0,0.00016438,2]
[358923610,1745545840567,-500.0,0.00016438,2]
[358923612,1745545840577,-500.0,0.00016438,2]
[358923613,1745545840589,-500.0,0.00016438,2]
[358923614,1745545840599,-486.46855156,0.00016438,2]
[358923615,1745545840609,-500.0,0.00016438,2]
[358923616,1745545840620,-500.0,0.00016438,2]
[358923618,1745545840630,-500.0,0.00016438,2]
[358923619,1745545840639,-500.0,0.00016438,2]
[358923620,1745545840650,-807.5,0.00016438,2]
[358923621,1745545840660,-505.36652501,0.00016438,2]
[358923622,1745545840670,-500.0,0.00016438,2]
[358923624,1745545840679,-500.0,0.00016438,2]
[358923625,1745545840689,-500.0,0.00016438,2]
[358923626,1745545840699,-500.0,0.00016438,2]
[358923627,1745545840708,-2678.13,0.00016438,2]
[358923628,1745545840719,-500.0,0.00016438,2]
[358923630,1745545840729,-500.0,0.00016438,2]
[358923631,1745545840740,-2387.38,0.00016438,2]
[358923632,1745545840749,-897.65,0.00016438,2]
[358923637,1745545840924,-197.1111412,0.00016438,2]
[358923638,1745545840935,-500.0,0.00016438,2]
[358923639,1745545840944,-500.0,0.00016438,2]
[358923640,1745545840954,-500.0,0.00016438,2]
[358923641,1745545840964,-500.0,0.00016438,2]
[358923643,1745545840973,-500.0,0.00016438,2]
[358923644,1745545840983,-500.0,0.00016438,2]
[358923645,1745545840993,-500.0,0.00016438,2]
[358923646,1745545841003,-2919.36,0.00016438,2]
[358923647,1745545841013,-500.0,0.00016438,2]
[358923649,1745545841024,-2269.43,0.00016438,2]
[358923650,1745545841033,-618.67,0.00016438,2]
[358923651,1745545841043,-500.0,0.00016438,2]
[358923652,1745545841054,-500.0,0.00016438,2]
[358923653,1745545841064,-500.0,0.00016438,2]
[358923655,1745545841074,-500.0,0.00016438,2]
[358923656,1745545841084,-500.0,0.00016438,2]
[358923657,1745545841093,-500.0,0.00016438,2]
[358923658,1745545841103,-500.0,0.00016438,2]
[358923659,1745545841113,-500.0,0.00016438,2]
[358923661,1745545841123,-500.0,0.00016438,2]
[358923662,1745545841132,-238.98317107,0.00016438,2]
[358923663,1745545841142,-500.0,0.00016438,2]
[358923664,1745545841152,-500.0,0.00016438,2]
[358923665,1745545841162,-759.75,0.00016438,2]
[358923667,1745545841171,-513.41282091,0.00016438,2]
[358923668,1745545841180,-500.0,0.00016438,2]
[358923669,1745545841190,-512.13440506,0.00016438,2]
[358923670,1745545841199,-622.64,0.00016438,2]
[358923671,1745545841209,-655.3,0.00016438,2]
[358923672,1745545841218,-500.0,0.00016438,2]
[358923674,1745545841228,-462.25270929,0.00016438,2]
[358923675,1745545841238,-479.74849857,0.00016438,2]
[358923676,1745545841248,-502.93656471,0.00016438,2]
[358923677,1745545841258,-500.0,0.00016438,2]
[358923678,1745545841268,-509.55281627,0.00016438,2]
[358923680,1745545841278,-500.0,0.00016438,2]
[358923681,1745545841288,-500.0,0.00016438,2]
[358923682,1745545841297,-500.0,0.00016438,2]
[358923683,1745545841307,-500.0,0.00016438,2]
[358923684,1745545841317,-696.37,0.00016438,2]
[358923686,1745545841327,-500.0,0.00016438,2]
[358923687,1745545841336,-500.0,0.00016438,2]
[358923688,1745545841346,-500.0,0.00016438,2]
[358923689,1745545841355,-857.02,0.00016438,2]
[358923690,1745545841365,-500.0,0.00016438,2]
[358923692,1745545841374,-500.0,0.00016438,2]
[358923693,1745545841384,-500.0,0.00016438,2]
[358923694,1745545841393,-500.0,0.00016438,2]
[358923695,1745545841402,-500.0,0.00016438,2]
[358923696,1745545841412,-852.36,0.00016438,2]
[358923698,1745545841422,-506.02021946,0.00016438,2]
[358923699,1745545841431,-500.0,0.00016438,2]
[358923700,1745545841440,-519.27036159,0.00016438,2]
[358923701,1745545841449,-500.0,0.00016438,2]
[358923702,1745545841459,-500.0,0.00016438,2]
[358923703,1745545841467,-500.0,0.00016438,2]
[358923705,1745545841476,-504.58649751,0.00016438,2]
[358923706,1745545841487,-500.0,0.00016438,2]
[358923707,1745545841496,-2282.09,0.00016438,2]
[358923708,1745545841505,-663.63,0.00016438,2]
[358923709,1745545841515,-234.63015089,0.00016438,2]
[358923710,1745545841524,-1689.28,0.00016438,2]
[358923711,1745545841534,-500.0,0.00016438,2]
[358923712,1745545841544,-500.0,0.00016473,2]
[358923713,1745545841553,-160.0,0.0001666,2]
[358923714,1745545841562,-840.0731918,0.0001666,2]
[358923715,1745545841571,-160.0,0.0001666,2]
[358923716,1745545841581,-160.0,0.0001666,2]
[358923717,1745545841590,-12570.97479393,0.0001666,2]
[358923718,1745545841599,-420.89490186,0.0001666,2]
[358923719,1745545841609,-160.0,0.0001666,2]
[358923720,1745545841619,-500.0,0.00016712,2]
[358923721,1745545841629,-500.0,0.00016712,2]
[358923722,1745545841639,-243.85856492,0.00016712,2]
[358923723,1745545841648,-500.0,0.00016712,2]
[358923724,1745545841658,-500.0,0.00016712,2]
[358923725,1745545841668,-528.69,0.00016712,2]
[358923726,1745545841678,-500.0,0.00016712,2]
[358923727,1745545841687,-500.0,0.00016712,2]
[358923728,1745545841697,-500.0,0.00016712,2]
[358923729,1745545841707,-826.89,0.00016712,2]
[358923730,1745545841717,-500.0,0.00016712,2]
[358923731,1745545841727,-500.0,0.00016712,2]
[358923732,1745545841736,-500.0,0.00016712,2]
[358923733,1745545841746,-500.0,0.00016712,2]
[358923734,1745545841755,-500.0,0.00016712,2]
[358923735,1745545841764,-500.0,0.00016712,2]
[358923736,1745545841774,-500.0,0.00016712,2]
[358923737,1745545841784,-500.0,0.00016712,2]
[358923738,1745545841793,-807.5,0.00016712,2]
[358923739,1745545841803,-500.0,0.00016712,2]
[358923740,1745545841812,-500.0,0.00016712,2]
[358923742,1745545841822,-500.0,0.00016712,2]
[358923743,1745545841831,-500.0,0.00016712,2]
[358923744,1745545841841,-2678.13,0.00016712,2]
[358923745,1745545841851,-335.29880527,0.00016712,2]
[358923746,1745545841861,-500.0,0.00016712,2]
[358923748,1745545841871,-2387.38,0.00016712,2]
[358923749,1745545841880,-897.65,0.00016712,2]
[358923750,1745545841890,-500.0,0.00016712,2]
[358923751,1745545841900,-500.0,0.00016712,2]
[358923752,1745545841910,-500.0,0.00016712,2]
[358923754,1745545841920,-500.0,0.00016712,2]
[358923755,1745545841930,-500.0,0.00016712,2]
[358923756,1745545841940,-500.0,0.00016712,2]
[358923757,1745545841952,-500.0,0.00016712,2]
[358923758,1745545841963,-2919.36,0.00016712,2]
[358923760,1745545841972,-500.0,0.00016712,2]
[358923761,1745545841982,-2269.43,0.00016712,2]
[358923762,1745545841994,-618.67,0.00016712,2]
[358923763,1745545842005,-500.0,0.00016712,2]
[358923764,1745545842015,-500.0,0.00016712,2]
[358923766,1745545842025,-500.0,0.00016712,2]
[358923767,1745545842038,-500.0,0.00016712,2]
[358923768,1745545842050,-500.0,0.00016712,2]
[358923769,1745545842064,-500.0,0.00016712,2]
[358923771,1745545842074,-321.63191785,0.00016712,2]
[358923772,1745545842085,-500.0,0.00016712,2]
[358923773,1745545842095,-500.0,0.00016712,2]
[358923774,1745545842106,-500.0,0.00016712,2]
[358923775,1745545842117,-500.0,0.00016712,2]
[358923777,1745545842126,-759.75,0.00016712,2]
[358923778,1745545842136,-500.0,0.00016712,2]
[358923779,1745545842146,-622.64,0.00016712,2]
[358923780,1745545842156,-655.3,0.00016712,2]
[358923781,1745545842167,-500.0,0.00016712,2]
[358923783,1745545842177,-500.0,0.00016712,2]
[358923784,1745545842187,-500.0,0.00016712,2]
[358923785,1745545842196,-500.0,0.00016712,2]
[358923786,1745545842206,-500.0,0.00016712,2]
[358923787,1745545842216,-500.0,0.00016712,2]
[358923789,1745545842226,-696.37,0.00016712,2]
[358923790,1745545842236,-500.0,0.00016712,2]
[358923791,1745545842246,-500.0,0.00016712,2]
[358923792,1745545842256,-500.0,0.00016712,2]
[358923793,1745545842266,-857.02,0.00016712,2]
[358923795,1745545842276,-378.29464336,0.00016712,2]
[358923796,1745545842286,-500.0,0.00016712,2]
[358923797,1745545842295,-415.46590835,0.00016712,2]
[358923798,1745545842305,-500.0,0.00016712,2]
[358923799,1745545842314,-500.0,0.00016712,2]
[358923801,1745545842323,-852.36,0.00016712,2]
[358923802,1745545842333,-500.0,0.00016712,2]
[358923803,1745545842344,-500.0,0.00016712,2]
[358923804,1745545842354,-500.0,0.00016712,2]
[358923805,1745545842365,-500.0,0.00016712,2]
[358923807,1745545842375,-500.0,0.00016712,2]
[358923808,1745545842385,-2282.09,0.00016712,2]
[358923809,1745545842394,-663.63,0.00016712,2]
[358923810,1745545842404,-1689.28,0.00016712,2]
[358923811,1745545842414,-1000.0,0.00016884,2]
[358923813,1745545842424,-500.0,0.00016986,2]
[358923815,1745545842434,-500.0,0.00016986,2]
[358923817,1745545842443,-500.0,0.00016986,2]
[358923819,1745545842453,-500.0,0.00016986,2]
[358923821,1745545842462,-528.69,0.00016986,2]
[358923822,1745545842472,-500.0,0.00016986,2]
[358923824,1745545842482,-500.0,0.00016986,2]
[358923825,1745545842491,-500.0,0.00016986,2]
[358923826,1745545842501,-826.89,0.00016986,2]
[358923827,1745545842511,-500.0,0.00016986,2]
[358923828,1745545842521,-500.0,0.00016986,2]
[358923830,1745545842531,-500.0,0.00016986,2]
[358923831,1745545842540,-330.75778243,0.00016986,2]
[358923832,1745545842550,-500.0,0.00016986,2]
[358923833,1745545842559,-500.0,0.00016986,2]
[358923834,1745545842568,-554.85101672,0.00016986,2]
[358923835,1745545842578,-500.0,0.00016986,2]
[358923837,1745545842587,-807.5,0.00016986,2]
[358923838,1745545842596,-500.0,0.00016986,2]
[358923839,1745545842606,-500.0,0.00016986,2]
[358923840,1745545842615,-500.0,0.00016986,2]
[358923841,1745545842625,-500.0,0.00016986,2]